bitfinex-derivatives/quotes_ETHF0:USTF0_20250528
["timestamp","ask_amount","ask_price","bid_price","bid_amount"]
[1748458905514,3.2078,2639.9,2639.8,24.52591]
[1748458905912,0.00569217,2640.1,2640.0,0.75736]
[1748458909811,0.01237182,2640.1,2640.0,0.75736]
[1748458910411,0.01237182,2640.1,2640.0,0.83199908]
[1748458913217,5.90064,2641.1,2640.0,0.83199908]
[1748458913218,3.2078,2640.9,2640.5,0.75721]
[1748458913520,2.00665,2640.8,2640.6,19.1563]
[1748458913814,0.75716,2640.7,2640.6,17.853]
[1748458914017,3.23846,2640.7,2640.6,18.61018]
[1748458914420,2.4813,2640.7,2640.6,18.61018]
[1748458915712,3.2078,2641.2,2640.6,17.853]
[1748458916019,3.2078,2641.2,2641.1,0.75704]
[1748458916214,3.2078,2641.2,2641.0,0.75706]
[1748458916422,0.6219,2641.1,2641.0,0.75706]
[1748458916615,1.37896,2641.1,2641.0,0.75706]
[1748458917119,0.6219,2641.1,2641.0,0.75706]
[1748458917317,0.6219,2641.1,2641.0,18.60506]
[1748458918121,1.37894,2641.1,2641.0,18.60506]
[1748458918318,0.6219,2641.1,2641.0,18.60506]
[1748458918514,0.6219,2641.1,2640.7,3.22656]
[1748458918515,0.75713,2640.8,2640.7,0.75714]
[1748458918716,0.75718,2640.7,2640.6,18.60416]
[1748458919022,0.671,2640.7,2640.6,18.60416]
[1748458920519,3.8297,2641.1,2641.0,0.75707]
[1748458920719,3.8297,2641.1,2641.0,4.76307]
[1748458920720,0.6219,2641.1,2641.0,4.76307]
[1748458921517,4.58674,2641.1,2641.0,4.006]
[1748458922121,4.58674,2641.1,2641.0,4.76307]
[1748458922624,3.8297,2641.1,2641.0,4.76307]
[1748458923014,4.58674,2641.1,2641.0,4.76307]
[1748458923221,3.8297,2641.1,2641.0,4.76307]
[1748458924315,0.6219,2641.1,2641.0,4.76307]
[1748458925819,0.6219,2641.1,2641.0,4.83770908]
[1748458926023,4.63573,2641.5,2641.4,0.75695]
[1748458926419,3.8788,2641.5,2641.4,0.75695]
[1748458927125,4.63573,2641.5,2641.4,0.75695]
[1748458927326,0.671,2641.5,2641.4,0.75695]
[1748458927622,0.671,2641.5,2641.4,4.76295]
[1748458927830,3.2078,2641.8,2641.7,0.75687]
[1748458928125,3.2078,2641.8,2641.7,18.59887]
[1748458932629,3.859,2642.1,2642.0,0.75678]
[1748458932823,4.61575,2642.1,2642.0,0.75678]
[1748458933026,0.6512,2642.1,2642.0,0.75678]
[1748458934030,0.75681,2641.9,2641.8,4.76249128]
[1748458934328,3.2078,2641.9,2641.8,4.76249128]
[1748458934527,3.96461,2641.9,2641.8,0.00568128]
[1748458934731,3.96461,2641.9,2641.0,0.07463908]
[1748458934732,0.75701,2641.2,2641.1,4.0]
[1748458935036,0.75701,2641.2,2641.0,18.59206]
[1748458935221,1.3238,2641.1,2641.0,18.59206]
[1748458936627,1.3238,2641.1,2640.8,0.00568128]
[1748458936833,3.9649,2640.9,2640.8,4.00568128]
[1748458937124,3.2078,2640.9,2640.8,22.59681128]
[1748458937629,1.2291,2640.9,2640.8,22.59681128]
[1748458938333,5.194,2640.9,2640.8,21.83968128]
[1748458938537,5.194,2640.9,2640.8,22.59681128]
[1748458938830,10.194,2640.9,2640.8,1.28e-06]
[1748458941027,10.194,2640.9,2640.8,0.07464036]
[1748458943131,5.194,2640.9,2640.8,0.07464036]
[1748458943938,4.4369,2640.9,2640.8,0.83177036]
[1748458944435,3.9649,2640.9,2640.8,0.07464036]
[1748458944627,3.2078,2640.9,2640.8,0.83177036]
[1748458944830,3.9649,2640.9,2640.8,0.83177036]
[1748458945027,3.9649,2640.9,2640.8,0.07464036]
[1748458945028,5.2771,2640.9,2640.8,0.07464036]
[1748458946034,5.2771,2640.9,2640.8,0.83177036]
[1748458946726,5.2771,2640.9,2640.8,0.07464036]
[1748458947337,5.2771,2640.9,2640.8,0.83177036]
[1748458948439,4.52,2640.9,2640.8,0.83177036]
[1748458948635,5.2771,2640.9,2640.8,0.83177036]
[1748458950741,5.2771,2640.9,2640.8,0.07464036]
[1748458951042,0.75727,2640.3,2640.2,4.75828]
[1748458951232,3.2078,2640.6,2640.2,21.836]
[1748458951441,3.2078,2640.6,2640.5,0.75721]
[1748458951639,3.96498,2640.6,2640.5,0.75721]
[1748458952339,3.2078,2640.6,2640.3,1.30838128]
[1748458952547,2.05361,2640.5,2640.4,18.59224]
[1748458953439,0.75724,2640.4,2640.3,0.00568128]
[1748458953640,2.05364,2640.4,2640.3,0.76295128]
[1748458954846,2.05364,2640.4,2640.3,0.00568128]
[1748458957451,1.2964,2640.4,2640.3,0.76295128]
[1748458957638,2.05364,2640.4,2640.3,0.76295128]
[1748458958145,1.2964,2640.4,2640.3,0.76295128]
[1748458959144,3.8554,2640.6,2640.5,0.64391]
[1748458959442,3.8554,2640.6,2640.5,0.71854908]
[1748458959849,3.2078,2640.6,2640.5,0.71854908]
[1748458962448,3.96498,2640.6,2640.5,0.71854908]
[1748458962748,5.27738,2640.6,2640.5,0.71854908]
[1748458962948,5.27738,2640.6,2640.5,0.83184908]
[1748458963349,5.27738,2640.6,2640.5,1.98951]
[1748458964846,3.2078,2640.6,2640.5,1.98951]
[1748458966254,3.2078,2640.6,2640.5,2.28070405]
[1748458966445,3.2078,2640.6,2640.5,2.35534313]
[1748458966753,3.2078,2640.6,2640.5,2.06414908]
[1748458967050,3.2078,2640.6,2640.5,2.35580421]
[1748458967250,3.2078,2640.6,2640.5,2.35580381]
[1748458967749,0.75718,2640.6,2640.5,0.3663554]
[1748458967953,5.24278,2640.6,2640.5,0.3663554]
[1748458968154,2.03498,2640.6,2640.5,1.1235654]
[1748458968448,0.75717,2640.7,2640.6,0.75718]
[1748458968640,0.00568128,2640.8,2640.6,1.2387]
[1748458968848,0.76283128,2640.8,2640.7,0.75716]
[1748458969049,0.76283128,2640.8,2640.7,1.0489287]
[1748458969250,2.04063128,2640.8,2640.7,0.75716]
[1748458972147,1.28348128,2640.8,2640.7,0.75716]
[1748458972750,0.00568128,2640.8,2640.7,0.75716]
[1748458973065,3.2078,2641.2,2640.9,1.89272]
[1748458973355,3.2078,2641.2,2641.1,0.75704]
[1748458974347,1.35114499,2641.4,2641.3,0.75698]
[1748458974751,0.00564499,2641.4,2641.3,0.75698]
[1748458975448,0.00564499,2641.4,2641.3,4.75298]
[1748458981758,0.75698,2641.3,2641.2,1.2221]
[1748458981964,0.75705,2641.2,2641.1,0.75701]
[1748458982261,4.4648,2641.3,2640.8,3.995]
[1748458982560,1.257,2641.1,2641.0,0.75707]
[1748458982760,2.01404,2641.1,2641.0,0.75707]
[1748458982961,1.257,2641.1,2641.0,0.75707]
[1748458983467,1.257,2641.1,2641.0,2.02077]
[1748458984569,2.01404,2641.1,2641.0,2.02077]
[1748458984864,2.01404,2641.1,2641.0,18.57907]
[1748458985065,0.7571,2641.0,2640.9,0.75708]
[1748458985258,5.0927,2641.0,2640.9,18.57908]
[1748458985454,5.0927,2641.0,2640.9,19.84278]
[1748458985660,1.8849,2641.0,2640.9,19.84278]
[1748458985853,3.2078,2641.3,2641.2,0.75701]
[1748458986060,4.4568,2641.3,2641.2,0.75701]
[1748458987167,0.00564499,2641.4,2641.3,0.75698]
[1748458987361,1.249,2641.6,2641.5,0.75693]
[1748458989070,1.3704,2642.0,2641.5,1.89233]
[1748458989268,0.6136,2642.0,2641.9,0.75681]
[1748458990471,1.9182,2642.0,2641.9,0.75681]
[1748458991456,0.6268,2642.3,2642.2,0.75673]
[1748458992666,0.6268,2642.3,2642.0,17.818]
[1748458992872,0.75676,2642.1,2642.0,18.57478]
[1748458993363,0.6314,2642.1,2642.0,18.57478]
[1748458994370,1.9648,2642.1,2642.0,18.57478]
[1748458995475,2.72156,2642.1,2642.0,18.57478]
[1748458995664,0.75684,2641.8,2641.7,0.00568128]
[1748458996371,2.64834,2641.8,2641.7,0.76255128]
[1748458997572,1.8915,2641.8,2641.7,0.76255128]
[1748458998764,0.75681,2642.0,2641.7,0.00568128]
[1748458998970,1.43151,2642.0,2641.9,0.75678]
[1748458999568,0.6747,2642.0,2641.9,0.75678]
[1748458999968,1.43148,2642.0,2641.9,0.75678]
[1748459000171,2.72788,2642.0,2641.9,0.75678]
[1748459000370,1.9711,2642.0,2641.9,0.75678]
[1748459000787,2.72788,2642.0,2641.9,0.75678]
[1748459001289,1.2964,2642.0,2641.9,0.75678]
[1748459001588,0.75684,2641.9,2641.8,0.75683]
[1748459001976,0.75684,2641.8,2641.7,0.76253128]
[1748459002177,0.75684,2641.8,2641.7,0.00568128]
[1748459002586,1.89228,2641.6,2641.0,3.988]
[1748459002781,0.75701,2641.3,2641.2,0.75698]
[1748459003675,0.75704,2641.2,2641.1,0.75702]
[1748459003875,2.56588128,2641.5,2641.0,3.99368128]
[1748459003876,0.75704,2641.1,2641.0,4.75074128]
[1748459004083,2.00494,2641.1,2641.0,4.75074128]
[1748459005487,1.33488128,2641.5,2641.0,4.75074128]
[1748459005488,1.33488128,2641.5,2641.3,0.75696]
[1748459005690,0.75703,2641.3,2641.2,0.75699]
[1748459009892,3.14034,2641.4,2641.0,3.99368128]
[1748459010094,0.75704,2641.1,2641.0,22.56172128]
[1748459011897,0.75704,2641.1,2641.0,4.75072128]
[1748459012198,0.75704,2641.1,2641.0,0.00568128]
[1748459013695,0.75704,2641.1,2641.0,0.76275128]
[1748459014388,1.98161,2641.2,2641.1,0.75704]
[1748459014787,0.75704,2641.1,2641.0,0.00568128]
[1748459014990,2.10444,2641.1,2641.0,0.00568128]
[1748459015796,2.10444,2641.1,2641.0,0.76275128]
[1748459016295,2.10444,2641.1,2641.0,0.00568128]
[1748459017201,2.10444,2641.1,2641.0,0.76275128]
[1748459017498,2.10444,2641.1,2641.0,0.00568128]
[1748459019498,2.10444,2641.1,2641.0,0.76275128]
[1748459020200,2.10444,2641.1,2641.0,0.00568128]
[1748459020594,1.3474,2641.1,2641.0,0.76275128]
[1748459020792,0.75704,2641.1,2641.0,0.00568128]
[1748459021201,0.75704,2641.1,2641.0,0.76275128]
[1748459021493,0.75704,2641.1,2641.0,0.00568128]
[1748459021693,0.75704,2641.1,2641.0,0.76275128]
[1748459029605,2.10774,2641.2,2641.1,0.75704]
[1748459029901,2.10774,2641.2,2641.1,2.01634]
[1748459031400,2.10774,2641.2,2641.1,0.75704]
[1748459033312,0.75704,2641.1,2641.0,0.00568128]
[1748459033507,2.11324,2641.1,2641.0,0.00568128]
[1748459034000,2.11324,2641.1,2641.0,0.76275128]
[1748459035195,2.09183128,2641.5,2641.4,0.75696]
[1748459035604,3.36193128,2641.5,2641.4,0.75696]
[1748459035902,0.75698,2641.4,2641.3,0.75696]
[1748459036093,2.02708,2641.4,2641.3,0.75696]
[1748459036610,1.2701,2641.4,2641.3,0.75696]
[1748459037001,2.02706,2641.4,2641.3,0.75696]
[1748459037201,1.2701,2641.4,2641.3,0.75696]
[1748459037399,2.02706,2641.4,2641.3,0.75696]
[1748459038401,1.2701,2641.4,2641.3,0.75696]
[1748459038708,2.09181128,2641.5,2641.4,0.75696]
[1748459039394,3.37211128,2641.5,2641.4,0.75696]
[1748459039597,0.76261128,2641.5,2641.4,0.75696]
[1748459040209,0.00568128,2641.5,2641.4,0.75696]
[1748459040702,0.00568128,2641.5,2641.4,3.96476]
[1748459041700,3.96461,2642.0,2641.6,1.89222]
[1748459041900,1.89204,2641.9,2641.4,3.2078]
[1748459042110,0.7569,2641.6,2641.5,0.75691]
[1748459042511,0.75687,2641.8,2641.7,0.75684]
[1748459042906,2.01574,2641.9,2641.8,0.75684]
[1748459043098,1.2589,2641.9,2641.8,0.75684]
[1748459043603,1.2589,2641.9,2641.8,2.10864]
[1748459043802,2.01571,2641.9,2641.8,2.10864]
[1748459044409,0.75681,2641.9,2641.8,2.10864]
[1748459044713,1.2994,2642.1,2642.0,0.75678]
[1748459045004,3.2078,2642.3,2642.2,0.75673]
[1748459045212,0.75673,2642.2,2642.1,2.10854]
[1748459045606,2.05613,2642.2,2642.1,2.10854]
[1748459046106,5.09936,2642.6,2642.3,0.75667]
[1748459046412,1.2994,2642.5,2642.4,18.55167]
[1748459046605,9.08013,2642.9,2642.5,1.89154]
[1748459046606,3.2078,2642.9,2642.5,1.89154]
[1748459046813,3.2078,2642.9,2642.8,0.75655]
[1748459047016,3.96433,2642.9,2642.8,0.75655]
[1748459047307,5.19553,2642.9,2642.8,0.75655]
[1748459047508,0.75658,2642.8,2642.7,0.75657]
[1748459048098,5.19555,2642.9,2642.6,1.3416]
[1748459048304,0.75656,2642.8,2642.7,0.75657]
[1748459048506,0.75657,2642.8,2642.7,0.75657]
[1748459049813,3.2078,2642.9,2642.8,0.75655]
[1748459050012,3.96433,2642.9,2642.8,4.73655]
[1748459050211,3.96433,2642.9,2642.8,3.98]
[1748459050511,3.96433,2642.9,2642.8,4.73656]
[1748459050711,3.2078,2642.9,2642.8,4.73656]
[1748459050909,4.4412,2643.2,2642.8,3.98]
[1748459051113,0.75653,2642.9,2642.8,4.73654]
[1748459051306,0.75652,2643.0,2642.9,0.75651]
[1748459051506,0.75653,2642.9,2642.8,4.73654]
[1748459051701,0.75652,2643.0,2642.9,0.7565]
[1748459052110,0.75655,2642.9,2642.8,18.54253]
[1748459052607,0.75652,2643.0,2642.9,0.7565]
[1748459053314,0.75653,2642.9,2642.8,18.54254]
[1748459054513,1.3429,2643.1,2642.6,4.73658]
[1748459054514,0.75658,2642.7,2642.6,4.73658]
[1748459054708,0.75658,2642.7,2642.6,22.52158]
[1748459055309,0.75657,2642.8,2642.7,0.75655]
[1748459055504,2.09947,2642.8,2642.7,0.75655]
[1748459055709,1.40993,2642.9,2642.8,0.75655]
[1748459056614,2.73603,2642.9,2642.8,0.75655]
[1748459059612,1.9795,2642.9,2642.8,0.75655]
[1748459060112,2.73603,2642.9,2642.8,0.75655]
[1748459060317,0.75658,2642.8,2642.7,0.75656]
[1748459060518,2.09338,2642.8,2642.7,0.75656]
[1748459061012,2.09338,2642.8,2642.7,18.53556]
[1748459061212,0.75658,2642.7,2642.5,4.5199]
[1748459061516,2.09338,2642.7,2642.6,22.50559]
[1748459061812,1.3368,2642.7,2642.6,22.50559]
[1748459062017,2.09338,2642.7,2642.6,22.50559]
[1748459062617,1.3368,2642.7,2642.6,22.50559]
[1748459062916,0.6534,2642.9,2642.7,0.75655]
[1748459063118,0.75658,2642.8,2642.7,0.75655]
[1748459063318,0.75658,2642.8,2642.7,18.53455]
[1748459063716,2.02028,2642.8,2642.7,18.53455]
[1748459064817,1.2637,2642.8,2642.7,18.53455]
[1748459065121,2.02025,2642.8,2642.7,18.53455]
[1748459065315,1.2637,2642.8,2642.7,18.53455]
[1748459067122,2.02025,2642.8,2642.7,18.53455]
[1748459067819,1.2637,2642.8,2642.7,18.53455]
[1748459068917,0.6534,2642.9,2642.8,0.75655]
[1748459069123,0.6534,2642.9,2642.8,2.01825]
[1748459069512,1.40993,2642.9,2642.8,2.01825]
[1748459069813,0.6534,2642.9,2642.8,2.01825]
[1748459070222,0.6534,2642.9,2642.8,5.22605]
[1748459070422,1.9306,2642.9,2642.8,5.22605]
[1748459071223,1.9306,2642.9,2642.8,22.99905]
[1748459072018,1.9306,2642.9,2642.8,19.79125]
[1748459072721,3.2078,2643.2,2642.9,0.75653]
[1748459072917,0.75645,2643.3,2643.2,0.75641]
[1748459073524,0.75647,2643.2,2643.1,0.75645]
[1748459073721,0.75651,2643.1,2643.0,4.72646]
[1748459074024,0.75651,2643.1,2643.0,4.72171073]
[1748459074420,0.75646,2643.2,2643.1,0.75642]
[1748459074922,0.7564,2643.4,2643.3,0.75638]
[1748459075920,2.08067,2643.5,2643.4,0.75638]
[1748459076321,3.42947,2643.5,2643.4,0.75638]
[1748459077322,0.75644,2643.4,2643.3,0.75639]
[1748459077523,1.98304,2643.4,2643.3,0.75639]
[1748459077927,1.3243,2643.5,2643.4,0.75638]
[1748459078823,0.1131,2643.6,2643.5,0.75635]
[1748459079317,0.1131,2643.6,2643.5,18.52235]
[1748459079522,2.09603,2643.6,2643.5,17.766]
[1748459079928,1.3397,2643.6,2643.5,18.52235]
[1748459080228,2.09603,2643.6,2643.5,18.52235]
[1748459080431,2.09603,2643.6,2643.5,19.86215]
[1748459081624,2.09603,2643.6,2643.5,19.1058]
[1748459081820,2.09603,2643.6,2643.5,19.86215]
[1748459082626,2.09603,2643.6,2643.5,19.1058]
[1748459085131,2.09603,2643.6,2643.5,19.86215]
[1748459085530,2.09603,2643.6,2643.5,19.1058]
[1748459085731,2.09603,2643.6,2643.5,19.86215]
[1748459086837,2.09603,2643.6,2643.5,19.1058]
[1748459088132,2.09603,2643.6,2643.5,19.86215]
[1748459088339,1.8208,2643.8,2643.7,0.7563]
[1748459088936,1.8208,2643.8,2643.7,3.9641]
[1748459089528,0.6715,2644.1,2644.0,0.75621]
[1748459089733,0.75619,2644.2,2644.1,0.75615]
[1748459089923,0.75619,2644.2,2644.1,17.757]
[1748459090129,0.75619,2644.2,2644.1,18.51318]
[1748459090736,0.75619,2644.2,2644.1,17.757]
[1748459091039,0.75619,2644.2,2644.1,18.51318]
[1748459093033,0.75619,2644.2,2644.1,17.757]
[1748459093538,2.07439,2644.2,2644.1,17.757]
[1748459093942,0.75619,2644.2,2644.1,18.51318]
[1748459094438,1.8339,2644.4,2644.1,17.757]
[1748459094631,1.8339,2644.4,2644.3,0.75613]
[1748459095139,1.8339,2644.4,2644.3,4.71413]
[1748459095338,1.8339,2644.4,2644.3,6.03313]
[1748459096538,2.59,2644.4,2644.3,6.03313]
[1748459096738,1.8339,2644.4,2644.3,6.03313]
[1748459097136,0.616,2644.7,2644.5,0.75604]
[1748459097438,0.616,2644.7,2644.6,2.05044]
[1748459097830,0.756,2644.8,2644.7,0.75601]
[1748459098132,0.6356,2644.9,2644.8,0.75598]
[1748459098331,1.88958,2645.4,2644.8,0.75598]
[1748459098332,3.2078,2645.3,2644.8,19.0424]
[1748459098543,0.75589,2645.2,2645.1,0.75587]
[1748459098829,0.7559,2645.1,2645.0,1.3455]
[1748459099037,0.75593,2645.0,2644.9,3.958]
[1748459099240,1.41973,2645.0,2644.9,21.706]
[1748459099737,0.75604,2644.7,2644.5,1.3455]
[1748459099937,0.75604,2644.7,2644.6,21.706]
[1748459100239,0.75604,2644.7,2644.6,22.46202]
[1748459100433,0.75604,2644.7,2644.6,22.46104]
[1748459101337,0.75604,2644.7,2644.6,21.705]
[1748459101538,0.75604,2644.6,2644.5,2.10155]
[1748459101739,0.75604,2644.6,2644.5,23.80355]
[1748459101940,2.00152,2644.7,2644.6,0.75604]
[1748459102335,0.75604,2644.6,2644.5,2.10155]
[1748459102537,1.2455,2644.7,2644.1,3.2078]
[1748459102737,0.75621,2644.0,2643.9,3.958]
[1748459103043,0.75624,2643.9,2643.8,0.00568128]
[1748459103230,3.38874,2643.9,2643.8,0.00568128]
[1748459107944,8.38874,2643.9,2643.8,0.00568128]
[1748459108442,3.38874,2643.9,2643.8,0.00568128]
[1748459109937,3.38874,2643.9,2643.8,0.76195128]
[1748459110244,3.38874,2643.9,2643.8,0.00568128]
[1748459111042,3.38874,2643.9,2643.8,1.34788128]
[1748459112242,3.38874,2643.9,2643.8,2.10415128]
[1748459112742,3.38874,2643.9,2643.8,1.34788128]
[1748459114150,3.38874,2643.9,2643.8,2.10415128]
[1748459114644,3.38874,2643.9,2643.8,1.34788128]
[1748459116141,3.38874,2643.9,2643.8,0.00568128]
[1748459117043,2.6325,2643.9,2643.8,0.76195128]
[1748459117246,1.2783,2643.9,2643.8,0.76195128]
[1748459117749,2.03454,2643.9,2643.8,0.76195128]
[1748459120245,1.2783,2643.9,2643.8,0.76195128]
[1748459120947,3.3211,2644.0,2643.9,0.75624]
[1748459121150,3.3211,2644.0,2643.9,2.11194]
[1748459121649,4.07731,2644.0,2643.9,2.11194]
[1748459121948,3.3211,2644.0,2643.9,2.11194]
[1748459122147,0.1133,2644.0,2643.9,6.05994]
[1748459122450,0.1133,2644.0,2643.9,9.26774]
[1748459129452,3.2078,2644.5,2644.4,0.7561]
[1748459129653,1.41501,2644.8,2644.7,0.75601]
[1748459130059,2.64261,2644.8,2644.7,0.75601]
[1748459130852,0.75601,2644.7,2644.6,2.06772]
[1748459131055,1.98361,2644.7,2644.6,2.06772]
[1748459133157,0.78461348,2644.7,2644.6,2.06772]
[1748459133362,0.75601,2644.7,2644.6,2.06772]
[1748459133751,3.2078,2644.9,2644.6,1.3117]
[1748459133958,3.2078,2644.9,2644.8,0.75598]
[1748459134254,0.6306,2645.0,2644.9,0.75595]
[1748459134457,0.6666,2645.1,2645.0,0.75593]
[1748459135149,0.75585,2645.3,2645.2,0.75587]
[1748459135753,0.75585,2645.3,2645.2,2.06127]
[1748459135950,1.42633,2645.4,2645.3,0.75584]
[1748459136158,0.6705,2645.4,2645.3,2.06124]
[1748459137048,1.41143,2645.7,2645.6,0.75575]
[1748459137352,3.2078,2645.9,2645.8,0.7557]
[1748459137554,1.88879,2646.5,2646.0,0.75563]
[1748459137555,0.75563,2646.1,2646.0,0.75563]
[1748459137763,3.2078,2646.2,2646.1,0.75561]
[1748459137959,3.2078,2646.2,2646.1,2.06101]
[1748459138267,2.63393,2646.4,2646.1,2.06101]
[1748459138453,2.63393,2646.4,2645.8,19.61321]
[1748459138454,2.63393,2646.4,2646.2,2.08596]
[1748459138653,2.63394,2646.4,2646.3,17.724]
[1748459139259,1.40874,2646.4,2646.3,18.47955]
[1748459139454,4.63378,2646.6,2646.3,17.724]
[1748459139755,4.63378,2646.6,2646.4,0.7555]
[1748459139961,3.8783,2646.6,2646.5,0.7555]
[1748459140359,1.42597,2646.6,2646.5,0.7555]
[1748459140553,0.6705,2646.6,2646.4,0.75552]
[1748459140758,3.2078,2647.0,2646.7,0.75542]
[1748459141062,3.2078,2647.0,2646.5,3.946]
[1748459141063,0.75547,2646.6,2646.5,3.946]
[1748459142056,0.75561,2646.1,2646.0,3.2078]
[1748459142257,0.75561,2646.1,2646.0,21.661]
[1748459143554,0.6104,2646.1,2645.5,3.8801]
[1748459143756,1.36601,2646.1,2646.0,17.714]
[1748459143958,1.36601,2646.1,2646.0,21.66]
[1748459144850,1.36601,2646.1,2646.0,3.946]
[1748459145060,1.36601,2646.1,2646.0,21.658]
[1748459149067,1.37142543,2646.1,2646.0,21.658]
[1748459151063,0.75564,2646.0,2645.9,0.75567]
[1748459152562,0.75567,2645.9,2645.8,18.46368]
[1748459153268,0.75566,2646.0,2645.9,0.75564]
[1748459153868,0.7557,2645.9,2645.8,0.75568]
[1748459154069,0.7557,2645.9,2645.8,18.46168]
[1748459154574,0.7557,2645.9,2645.8,19.79238]
[1748459154970,0.75575,2645.6,2645.5,3.2078]
[1748459155176,0.75578,2645.5,2645.4,0.00567033]
[1748459155371,2.75058,2645.5,2645.4,0.00567033]
[1748459155567,1.42628,2645.5,2645.4,19.79718033]
[1748459159677,0.6705,2645.5,2645.4,19.79718033]
[1748459160284,0.6279,2645.8,2645.7,0.75573]
[1748459160485,0.6183,2646.0,2645.8,0.75568]
[1748459160784,0.75568,2645.9,2645.8,0.75568]
[1748459160985,0.75568,2645.9,2645.8,2.06988]
[1748459161185,3.27166,2646.0,2645.9,0.75567]
[1748459161485,2.516,2646.0,2645.9,2.06987]
[1748459161683,3.27164,2646.0,2645.9,2.06987]
[1748459161879,0.75575,2645.6,2645.5,0.75578]
[1748459162076,0.75575,2645.6,2645.4,0.00567033]
[1748459162077,0.75578,2645.5,2645.4,0.00567033]
[1748459162282,4.61998,2645.5,2645.4,0.00567033]
[1748459162987,1.41218,2645.5,2645.4,0.76148033]
[1748459163285,2.03898,2645.5,2645.4,0.76148033]
[1748459163685,1.2832,2645.5,2645.4,0.76148033]
[1748459164187,2.03898,2645.5,2645.4,0.00567033]
[1748459164391,3.31708,2645.5,2645.4,0.00567033]
[1748459166487,3.31708,2645.5,2645.4,0.76148033]
[1748459167383,3.31708,2645.5,2645.4,0.00567033]
[1748459167584,0.75593,2645.0,2644.9,0.32747]
[1748459168482,0.1131,2645.1,2645.0,0.75593]
[1748459168690,0.1131,2645.1,2645.0,1.99383]
[1748459170092,0.75593,2645.0,2644.9,1e-05]
[1748459170293,2.10893,2645.0,2644.9,1e-05]
[1748459170791,2.72043,2645.0,2644.9,1e-05]
[1748459171992,7.72043,2645.0,2644.9,1e-05]
[1748459172890,7.72043,2645.0,2643.8,3.23306]
[1748459172891,0.75619,2644.2,2643.8,3.23306]
[1748459173086,0.75619,2644.2,2644.1,0.75617]
[1748459173693,2.09159,2644.2,2644.1,0.75617]
[1748459175987,1.3354,2644.2,2644.1,0.75617]
[1748459176389,0.6259,2644.3,2644.2,0.75615]
[1748459176690,0.75617,2644.2,2644.1,0.75616]
[1748459176898,2.65205,2644.3,2644.2,0.75615]
[1748459177100,1.8959,2644.3,2644.2,0.75615]
[1748459177298,3.2078,2644.4,2644.3,0.75613]
[1748459178796,3.2078,2644.4,2644.3,1.37633]
[1748459180199,1.9126,2644.7,2644.6,0.75604]
[1748459180397,2.66861,2644.7,2644.6,0.75604]
[1748459181608,0.75606,2644.6,2644.5,0.75605]
[1748459181800,1.98906,2644.6,2644.5,0.75605]
[1748459182509,1.233,2644.6,2644.5,0.75605]
[1748459183302,1.98904,2644.6,2644.5,0.75605]
[1748459183605,0.75607,2644.5,2644.4,2.06247]
[1748459183806,1.2638,2644.5,2644.4,2.06247]
[1748459184000,1.39863,2644.7,2644.6,0.75604]
[1748459184303,0.75607,2644.5,2644.4,1.3064]
[1748459184501,0.75607,2644.5,2644.4,2.0625]
[1748459185306,0.1132,2644.6,2644.4,1.3064]
[1748459185500,0.1132,2644.6,2644.5,0.75607]
[1748459185700,0.1132,2644.6,2644.5,2.02567]
[1748459185998,0.1132,2644.6,2644.5,1.38767]
[1748459186207,2.13304,2644.6,2644.5,0.75607]
[1748459186502,0.75618,2644.1,2644.0,0.7562]
[1748459186706,0.75621,2644.0,2643.9,0.00567033]
[1748459187001,1.2669,2644.0,2643.9,0.76191033]
[1748459187305,1.3442,2644.2,2644.1,0.75618]
[1748459187495,3.96394,2644.3,2643.9,2.06021033]
[1748459187496,3.2078,2644.3,2643.9,2.06021033]
[1748459187703,2.6111,2644.5,2644.4,0.7561]
[1748459187894,4.07705,2644.6,2644.2,0.75615]
[1748459187895,0.1132,2644.6,2644.2,0.75615]
[1748459188112,0.1132,2644.6,2644.5,0.75607]
[1748459188302,0.1132,2644.6,2644.5,18.45607]
[1748459189505,0.1132,2644.6,2644.5,0.75607]
[1748459189801,0.1132,2644.6,2644.5,18.45607]
[1748459190003,0.86924,2644.6,2644.5,0.75607]
[1748459190204,0.1132,2644.6,2644.5,18.45607]
[1748459190413,0.1132,2644.6,2644.5,19.67927]
[1748459191905,0.1132,2644.6,2644.5,22.88707]
[1748459194113,0.18783908,2644.6,2644.5,22.88707]
[1748459194612,0.18783908,2644.6,2644.5,19.67927]
[1748459195710,3.8304,2645.1,2645.0,0.75593]
[1748459196009,3.8304,2645.1,2644.8,1.88994]
[1748459196010,0.00563382,2645.2,2645.1,0.7559]
[1748459196208,0.00563382,2645.2,2645.1,17.696]
[1748459196410,2.11610382,2645.2,2645.1,17.696]
[1748459196613,2.64565,2645.1,2644.8,3.928]
[1748459196816,5.95763,2645.0,2644.9,17.696]
[1748459197406,5.95763,2645.0,2644.9,18.45195]
[1748459197606,5.2017,2645.0,2644.9,18.45195]
[1748459198316,5.2017,2645.0,2644.9,19.72085]
[1748459199816,0.6393,2645.0,2644.9,19.72085]
[1748459200709,1.25443382,2645.2,2645.1,0.7559]
[1748459200710,0.00563382,2645.2,2645.1,0.7559]
[1748459201111,1.88933,2645.7,2645.1,0.7559]
[1748459201112,0.75572,2645.8,2645.3,1.88961]
[1748459201316,0.75572,2645.8,2645.7,0.75573]
[1748459201509,0.75568,2645.9,2645.8,0.75568]
[1748459202919,2.01298,2645.9,2645.8,0.75568]
[1748459203629,1.313,2646.0,2645.9,0.75567]
[1748459204434,3.32594,2646.0,2645.9,0.75567]